fUST/lending_fUST_20250609
["ID","MTS","AMOUNT","RATE_DAILY","PERIOD"]
[365079502,1749445842741,-602.86705704,0.00021817,2]
[365079504,1749445842750,-3000.0,0.000219,2]
[365079506,1749445842760,-3000.0,0.0002191,2]
[365079508,1749445842770,-203.73728105,0.00021917,2]
[365079510,1749445842780,-500.0,0.00021917,2]
[365079512,1749445842789,-515.63,0.00021917,2]
[365079514,1749445842799,-554.44,0.00021917,2]
[365079516,1749445842809,-557.79,0.00021917,2]
[365079518,1749445842819,-1271.94,0.00021917,2]
[365079520,1749445842829,-440.0,0.00021917,2]
[365079522,1749445842838,-531.27,0.00021917,2]
[365079525,1749445842848,-760.03,0.00021917,2]
[365079527,1749445842858,-440.0,0.00021917,2]
[365079529,1749445842868,-816.9,0.00021917,2]
[365079531,1749445842877,-986.49,0.00021917,2]
[365079533,1749445842886,-1237.73,0.00021917,2]
[365079535,1749445842896,-903.46,0.00021917,2]
[365079537,1749445842906,-440.0,0.00021917,2]
[365079538,1749445842916,-1192.7,0.00021917,2]
[365079539,1749445842926,-1365.7,0.00021917,2]
[365079540,1749445842935,-457.32,0.00021917,2]
[365079542,1749445842945,-493.27,0.00021917,2]
[365079543,1749445842954,-529.15,0.00021917,2]
[365079545,1749445842964,-184.54873603,0.00021918,2]
[365079547,1749445842974,-3000.0,0.0002192,2]
[365079550,1749445842983,-3000.0,0.0002193,2]
[365079553,1749445842993,-87297.05813182,0.0002193,2]
[365079555,1749445843002,-3000.0,0.0002194,2]
[365079557,1749445843012,-3000.0,0.0002195,2]
[365079559,1749445843022,-3000.0,0.0002196,2]
[365079561,1749445843032,-707.56412775,0.00021969,6]
[365079564,1749445843042,-3000.0,0.0002197,2]
[365079566,1749445843052,-500.0,0.00021973,2]
[365079569,1749445843062,-512.96172377,0.00021973,2]
[365079572,1749445843072,-500.0,0.00021973,2]
[365079574,1749445843082,-500.0,0.00021973,2]
[365079577,1749445843091,-600.0,0.00021973,2]
[365079579,1749445843101,-502.24300127,0.00021973,2]
[365079582,1749445843111,-3000.0,0.0002198,2]
[365079585,1749445843121,-3000.0,0.0002199,2]
[365079587,1749445843130,-3000.0,0.00022,2]
[365079590,1749445843140,-217.0,0.00022,2]
[365079592,1749445843150,-3000.0,0.0002201,2]
[365079594,1749445843159,-3000.0,0.0002202,2]
[365079596,1749445843168,-3000.0,0.0002203,2]
[365079598,1749445843179,-3000.0,0.0002204,2]
[365079600,1749445843189,-3000.0,0.0002205,2]
[365079602,1749445843198,-500.0,0.00022053,2]
[365079605,1749445843208,-3000.0,0.0002206,2]
[365079607,1749445843217,-3000.0,0.0002207,2]
[365079609,1749445843228,-227.42880251,0.00022073,2]
[365079611,1749445843238,-502.26526708,0.00022073,2]
[365079616,1749445843282,-500.0,0.00022073,2]
[365079618,1749445843292,-500.0,0.00022073,2]
[365079621,1749445843302,-500.0,0.00022073,2]
[365079624,1749445843311,-500.0,0.00022073,2]
[365079626,1749445843321,-500.0,0.00022073,2]
[365079628,1749445843331,-500.0,0.00022073,2]
[365079630,1749445843340,-500.0,0.00022073,2]
[365079632,1749445843349,-623.62627761,0.00022073,2]
[365079634,1749445843361,-502.69473281,0.00022073,2]
[365079636,1749445843371,-3000.0,0.0002208,2]
[365079638,1749445843379,-3000.0,0.0002209,2]
[365079640,1749445843389,-3000.0,0.000221,2]
[365079641,1749445843398,-3000.0,0.0002211,2]
[365079643,1749445843407,-3000.0,0.0002212,2]
[365079645,1749445843415,-3000.0,0.0002213,2]
[365079647,1749445843423,-3000.0,0.0002214,2]
[365079649,1749445843432,-707.56412775,0.00022141,6]
[365079651,1749445843441,-3000.0,0.0002215,2]
[365079652,1749445843450,-3000.0,0.0002216,2]
[365079654,1749445843459,-3000.0,0.0002217,2]
[365079656,1749445843467,-3000.0,0.0002218,2]
[365079658,1749445843475,-3000.0,0.0002219,2]
[365079660,1749445843484,-515.63,0.00022191,4]
[365079662,1749445843492,-554.44,0.00022191,4]
[365079664,1749445843500,-557.79,0.00022191,4]
[365079666,1749445843509,-1271.94,0.00022191,4]
[365079667,1749445843518,-440.0,0.00022191,4]
[365079669,1749445843527,-531.27,0.00022191,4]
[365079671,1749445843535,-760.03,0.00022191,4]
[365079673,1749445843544,-440.0,0.00022191,4]
[365079675,1749445843554,-816.9,0.00022191,4]
[365079677,1749445843563,-986.49,0.00022191,4]
[365079679,1749445843573,-1237.73,0.00022191,4]
[365079681,1749445843583,-903.46,0.00022191,4]
[365079683,1749445843592,-427.94378048,0.00022191,4]
[365079685,1749445843603,-1192.7,0.00022191,4]
[365079687,1749445843612,-1365.7,0.00022191,4]
[365079689,1749445843621,-457.32,0.00022191,4]
[365079691,1749445843631,-493.27,0.00022191,4]
[365079693,1749445843640,-529.15,0.00022191,4]
[365079694,1749445843650,-3000.0,0.000222,2]
[365079696,1749445843659,-831.03,0.000222,7]
[365079699,1749445843669,-200.46604529,0.000222,69]
[365079701,1749445843680,-3000.0,0.0002221,2]
[365079702,1749445843690,-3000.0,0.0002222,2]
[365079703,1749445843699,-3000.0,0.0002223,2]
[365079704,1749445843710,-3000.0,0.0002224,2]
[365079705,1749445843719,-3000.0,0.0002225,2]
[365079707,1749445843729,-3000.0,0.0002226,2]
[365079709,1749445843739,-3000.0,0.0002227,2]
[365079711,1749445843748,-3000.0,0.0002228,2]
[365079713,1749445843758,-3000.0,0.0002229,2]
[365079715,1749445843768,-3000.0,0.000223,2]
[365079717,1749445843777,-155.92895944,0.00022305,2]
[365079719,1749445843787,-3000.0,0.0002231,2]
[365079721,1749445843796,-707.56412775,0.00022314,7]
[365079723,1749445843806,-3000.0,0.0002232,2]
[365079725,1749445843815,-3000.0,0.0002233,2]
[365079727,1749445843825,-3673.489128,0.0002234,2]
[365079729,1749445843834,-160.0,0.00022379,3]
[365079731,1749445843844,-602.86705704,0.00022381,2]
[365079733,1749445843855,-500.0,0.00022388,2]
[365079735,1749445843865,-504.28435098,0.00022388,2]
[365079738,1749445843883,-504.30310197,0.00022388,2]
[365079740,1749445843898,-530.01113979,0.00022388,2]
[365079742,1749445843908,-502.62145331,0.00022388,2]
[365079744,1749445843918,-500.0,0.00022388,2]
[365079746,1749445843929,-500.0,0.00022388,2]
[365079747,1749445843938,-500.0,0.00022388,2]
[365079748,1749445843948,-500.0,0.00022388,2]
[365079749,1749445843957,-506.56918345,0.00022388,2]
[365079750,1749445843967,-500.0,0.00022388,2]
[365079751,1749445843977,-500.0,0.00022388,2]
[365079752,1749445843987,-500.0,0.00022388,2]
[365079753,1749445843996,-965.86,0.00022401,2]
[365079754,1749445844006,-516.48314463,0.00022465,2]
[365079755,1749445844016,-515.63,0.00022465,4]
[365079756,1749445844027,-554.44,0.00022465,4]
[365079757,1749445844037,-557.79,0.00022465,4]
[365079758,1749445844048,-1271.94,0.00022465,4]
[365079759,1749445844057,-473.80896608,0.00022465,4]
[365079760,1749445844067,-531.27,0.00022465,4]
[365079761,1749445844077,-760.03,0.00022465,4]
[365079762,1749445844087,-440.0,0.00022465,4]
[365079763,1749445844098,-816.9,0.00022465,4]
[365079764,1749445844108,-986.49,0.00022465,4]
[365079765,1749445844118,-1237.73,0.00022465,4]
[365079766,1749445844127,-903.46,0.00022465,4]
[365079767,1749445844138,-1192.7,0.00022465,4]
[365079768,1749445844149,-1365.7,0.00022465,4]
[365079769,1749445844159,-457.32,0.00022465,4]
[365079770,1749445844171,-493.27,0.00022465,4]
[365079771,1749445844182,-529.15,0.00022465,4]
[365079772,1749445844192,-707.56412775,0.00022486,7]
[365079773,1749445844203,-512.03976152,0.00022521,2]
[365079774,1749445844213,-1000.0,0.00022521,2]
[365079775,1749445844224,-1000.0,0.00022521,2]
[365079776,1749445844236,-1200.0,0.00022521,2]
[365079777,1749445844246,-1000.0,0.00022621,2]
[365079778,1749445844255,-1000.0,0.00022621,2]
[365079779,1749445844265,-1052.94390741,0.00022621,2]
[365079780,1749445844275,-1000.0,0.00022621,2]
[365079781,1749445844284,-1000.0,0.00022621,2]
[365079782,1749445844294,-252.34158606,0.00022621,2]
[365079783,1749445844303,-1008.80002652,0.00022621,2]
[365079784,1749445844314,-364.9269501,0.0002263,2]
[365079785,1749445844324,-364.9269501,0.0002263,2]
[365079786,1749445844334,-364.9269501,0.0002263,2]
[365079787,1749445844344,-364.9269501,0.0002263,2]
[365079788,1749445844357,-364.9269501,0.0002263,2]
[365079789,1749445844367,-729.8539002,0.0002263,2]
[365079790,1749445844378,-707.56412775,0.00022659,7]
[365079791,1749445844388,-515.63,0.00022739,4]
[365079792,1749445844399,-554.44,0.00022739,4]
[365079793,1749445844410,-557.79,0.00022739,4]
[365079794,1749445844420,-1271.94,0.00022739,4]
[365079795,1749445844431,-531.27,0.00022739,4]
[365079796,1749445844442,-760.03,0.00022739,4]
[365079797,1749445844452,-440.0,0.00022739,4]
[365079798,1749445844462,-816.9,0.00022739,4]
[365079799,1749445844472,-986.49,0.00022739,4]
[365079800,1749445844483,-1237.73,0.00022739,4]
[365079801,1749445844498,-903.46,0.00022739,4]
[365079802,1749445844509,-1192.7,0.00022739,4]
[365079803,1749445844519,-1365.7,0.00022739,4]
[365079804,1749445844531,-457.32,0.00022739,4]
[365079805,1749445844541,-493.27,0.00022739,4]
[365079806,1749445844552,-529.15,0.00022739,4]
[365079807,1749445844562,-707.56412775,0.00022831,8]
[365079808,1749445844573,-498.12,0.000229,7]
[365079809,1749445844585,-259.8782008,0.00022904,2]
[365079810,1749445844596,-153.0,0.00022904,2]
[365079811,1749445844606,-153.0,0.00022904,2]
[365079812,1749445844616,-153.0,0.00022904,2]
[365079813,1749445844627,-1000.0,0.00022936,2]
[365079814,1749445844637,-509.61597638,0.00022936,2]
[365079815,1749445844648,-592.40210575,0.00022936,2]
[365079816,1749445844659,-503.55059304,0.00022936,2]
[365079817,1749445844669,-1000.0,0.00022936,2]
[365079818,1749445844680,-1004.30735169,0.00022936,2]
[365079819,1749445844690,-1000.0,0.00022936,2]
[365079820,1749445844702,-1000.0,0.00022936,2]
[365079821,1749445844712,-602.86705704,0.00022945,2]
[365079822,1749445844723,-939.0,0.00023,120]
[365079823,1749445844733,-707.56412775,0.00023003,8]
[365079824,1749445844743,-200.0,0.00023012,2]
[365079825,1749445844754,-515.63,0.00023013,4]
[365079826,1749445844765,-554.44,0.00023013,4]
[365079827,1749445844776,-557.79,0.00023013,4]
[365079828,1749445844786,-1271.94,0.00023013,4]
[365079829,1749445844797,-531.27,0.00023013,4]
[365079830,1749445844808,-760.03,0.00023013,4]
[365079831,1749445844818,-440.0,0.00023013,4]
[365079832,1749445844829,-816.9,0.00023013,4]
[365079833,1749445844840,-986.49,0.00023013,4]
[365079834,1749445844850,-1237.73,0.00023013,4]
[365079835,1749445844860,-903.46,0.00023013,4]
[365079836,1749445844871,-1192.7,0.00023013,4]
[365079837,1749445844883,-1365.7,0.00023013,4]
[365079838,1749445844893,-457.32,0.00023013,4]
[365079839,1749445844905,-493.27,0.00023013,4]
[365079840,1749445844917,-5000.0,0.0002302,2]
[365079841,1749445844928,-151.31920398,0.0002302,2]
[365079842,1749445844940,-151.34355789,0.0002302,2]
[365079843,1749445844950,-1688.0,0.0002302,2]
[365079844,1749445844961,-500.0,0.0002302,2]
[365079845,1749445844971,-500.0,0.0002302,2]
[365079846,1749445844981,-500.0,0.0002302,2]
[365079847,1749445844991,-500.0,0.0002302,2]
[365079848,1749445845001,-500.0,0.0002302,2]
[365079849,1749445845011,-500.0,0.0002302,2]
[365079850,1749445845022,-500.0,0.0002302,2]
[365079851,1749445845035,-500.0,0.0002302,2]
[365079852,1749445845045,-500.0,0.0002302,2]
[365079853,1749445845057,-500.0,0.0002302,2]
[365079854,1749445845067,-500.0,0.0002302,2]
[365079855,1749445845076,-500.0,0.0002302,2]
[365079856,1749445845086,-1965.86189664,0.0002302,2]
[365079857,1749445845097,-500.0,0.0002302,2]
[365079858,1749445845110,-500.0,0.0002302,2]
[365079859,1749445845120,-500.0,0.0002302,2]
[365079860,1749445845131,-500.0,0.0002302,2]
[365079861,1749445845141,-500.0,0.0002302,2]
[365079862,1749445845153,-500.0,0.0002302,2]
[365079863,1749445845164,-500.0,0.0002302,2]
[365079864,1749445845175,-500.0,0.0002302,2]
[365079865,1749445845186,-500.0,0.0002302,2]
[365079866,1749445845197,-500.0,0.0002302,2]
[365079867,1749445845207,-500.0,0.0002302,2]
[365079868,1749445845219,-500.0,0.0002302,2]
[365079869,1749445845229,-500.0,0.0002302,2]
[365079870,1749445845239,-500.0,0.0002302,2]
[365079871,1749445845250,-500.0,0.0002302,2]
[365079872,1749445845261,-500.0,0.0002302,2]
[365079873,1749445845273,-500.0,0.0002302,2]
[365079874,1749445845283,-500.0,0.0002302,2]
[365079875,1749445845294,-207.4,0.0002302,2]
[365079876,1749445845305,-351.47046417,0.00023068,2]
[365079877,1749445845315,-1800.0,0.00023068,2]
[365079878,1749445845326,-511.29238003,0.00023068,2]
[365079879,1749445845336,-1009.1765755,0.00023075,2]
[365079880,1749445845347,-200.50968493,0.00023099,2]
[365079881,1749445845360,-53965.13,0.000231,2]
[365079882,1749445845370,-160.0,0.00023108,4]
[365079883,1749445845380,-1130.50859295,0.00023168,2]
[365079884,1749445845391,-1500.0,0.00023168,2]
[365079885,1749445845402,-1500.0,0.00023168,2]
[365079886,1749445845413,-707.56412775,0.00023176,8]
[365079887,1749445845423,-87297.05813181,0.00023194,2]
[365079888,1749445845436,-734.19421086,0.00023233,120]
[365079889,1749445845446,-515.63,0.00023287,4]
[365079890,1749445845457,-554.44,0.00023287,4]
[365079891,1749445845468,-557.79,0.00023287,4]
[365079892,1749445845479,-1271.94,0.00023287,4]
[365079893,1749445845489,-531.27,0.00023287,4]
[365079894,1749445845499,-760.03,0.00023287,4]
[365079895,1749445845509,-440.0,0.00023287,4]
[365079896,1749445845521,-816.9,0.00023287,4]
[365079897,1749445845532,-986.49,0.00023287,4]
[365079898,1749445845542,-1237.73,0.00023287,4]
[365079899,1749445845553,-903.46,0.00023287,4]
[365079900,1749445845564,-1192.7,0.00023287,4]
[365079901,1749445845575,-1365.7,0.00023287,4]
[365079902,1749445845585,-457.32,0.00023287,4]
[365079903,1749445845595,-493.27,0.00023287,4]
[365079904,1749445845607,-515.99395455,0.00023329,5]
[365079905,1749445845618,-707.56412775,0.00023348,9]
[365079906,1749445845628,-162.08792404,0.00023397,2]
[365079907,1749445845639,-162.08792405,0.00023397,2]
[365079908,1749445845649,-162.08792404,0.00023397,2]
[365079909,1749445845659,-1500.0,0.00023484,2]
[365079910,1749445845669,-1500.0,0.00023484,2]
[365079911,1749445845679,-1004.42537304,0.00023484,2]
[365079912,1749445845691,-1500.0,0.00023484,2]
[365079913,1749445845701,-831.03,0.000235,7]
[365079914,1749445845712,-602.86705704,0.00023508,2]
[365079915,1749445845723,-707.56412775,0.00023521,9]
[365079916,1749445845734,-500.0,0.0002356,2]
[365079917,1749445845744,-219278.47198,0.0002356,2]
[365079918,1749445845754,-515.63,0.00023561,4]
[365079919,1749445845765,-554.44,0.00023561,4]
[365079920,1749445845775,-557.79,0.00023561,4]
[365079921,1749445845786,-1271.94,0.00023561,4]
[365079922,1749445845796,-531.27,0.00023561,4]
[365079923,1749445845806,-760.03,0.00023561,4]
[365079925,1749445845816,-176.7770998,0.00023561,4]
[365079926,1749445845827,-816.9,0.00023561,4]
[365079927,1749445845837,-986.49,0.00023561,4]
[365079928,1749445845847,-1237.73,0.00023561,4]
[365079929,1749445845858,-903.46,0.00023561,4]
[365079930,1749445845869,-1192.7,0.00023561,4]
[365079931,1749445845879,-1365.7,0.00023561,4]
[365079932,1749445845890,-457.32,0.00023561,4]
[365079933,1749445845900,-493.27,0.00023561,4]
[365079934,1749445845910,-5000.0,0.00023568,2]
[365079935,1749445845921,-500.0,0.0002357,2]
[365079936,1749445845932,-600.0,0.00023585,2]
[365079937,1749445845943,-2400.0,0.00023616,2]
[365079938,1749445845954,-964.121,0.0002366,2]
[365079939,1749445845964,-2160.0,0.0002366,2]
[365079940,1749445845975,-653.0,0.0002366,2]
[365079941,1749445845986,-707.56412775,0.00023693,9]
[365079942,1749445846006,-2000.0,0.00023698,7]
[365079943,1749445846021,-2000.0,0.00023698,7]
[365079944,1749445846032,-1014.58021333,0.00023698,7]
[365079945,1749445846043,-162.08792404,0.00023699,2]
[365079946,1749445846055,-162.55636837,0.00023699,2]
[365079947,1749445846067,-162.08792405,0.00023699,2]
[365079948,1749445846079,-162.08792404,0.00023699,2]
[365079949,1749445846090,-193.34467251,0.00023716,2]
[365079950,1749445846102,-2000.0,0.00023716,2]
[365079951,1749445846113,-800.0,0.00023781,2]
[365079952,1749445846125,-600.0,0.00023831,2]
[365079953,1749445846136,-515.63,0.00023835,4]
[365079954,1749445846148,-554.44,0.00023835,4]
[365079955,1749445846160,-557.79,0.00023835,4]
[365079956,1749445846173,-1271.94,0.00023835,4]
[365079972,1749445846323,-531.27,0.00023835,4]
[365079974,1749445846335,-760.03,0.00023835,4]
[365079976,1749445846346,-816.9,0.00023835,4]
[365079978,1749445846360,-986.49,0.00023835,4]
[365079980,1749445846370,-1237.73,0.00023835,4]
[365079982,1749445846381,-903.46,0.00023835,4]
[365079984,1749445846391,-1192.7,0.00023835,4]
[365079987,1749445846403,-1365.7,0.00023835,4]
[365079989,1749445846413,-457.32,0.00023835,4]
[365079991,1749445846423,-493.27,0.00023835,4]
[365079993,1749445846433,-800.0,0.00023836,2]
[365079995,1749445846443,-160.0,0.00023837,5]
[365079997,1749445846453,-800.0,0.00023852,2]
[365079999,1749445846462,-707.56412775,0.00023866,10]
[365080001,1749445846472,-9431.6,0.00023872,10]
[365080003,1749445846482,-800.0,0.0002388,2]
[365080005,1749445846492,-250.0,0.00023894,2]
[365080007,1749445846503,-5391.0,0.00023912,7]
[365080009,1749445846514,-800.0,0.00023938,2]
[365080011,1749445846525,-5391.0,0.00023941,7]
[365080013,1749445846535,-800.0,0.00023967,2]
[365080015,1749445846545,-5391.0,0.0002397,7]
[365080017,1749445846555,-800.0,0.00023976,2]
[365080019,1749445846566,-5391.0,0.00023999,7]
[365080022,1749445846580,-1000.0,0.00024,120]
[365080024,1749445846590,-2300.0,0.00024,120]
[365080026,1749445846600,-160.0,0.00024,7]
[365080028,1749445846610,-71958.031,0.00024,2]
[365080030,1749445846620,-834.7738823,0.00024,7]
[365080032,1749445846630,-229.64266968,0.00024,7]
[365080034,1749445846639,-1207.33,0.00024001,2]
[365080036,1749445846649,-162.08792404,0.00024027,2]
[365080038,1749445846659,-162.08792405,0.00024027,2]
[365080040,1749445846669,-162.08792404,0.00024027,2]
[365080041,1749445846679,-5394.68256307,0.00024028,7]
[365080043,1749445846689,-197.78453008,0.0002403,2]
[365080044,1749445846699,-2000.0,0.00024032,2]
[365080046,1749445846709,-2009.49702705,0.00024032,2]
[365080048,1749445846719,-2000.0,0.00024032,2]
[365080049,1749445846729,-707.56412775,0.00024038,10]
[365080050,1749445846739,-800.0,0.00024053,2]
[365080051,1749445846749,-1512.974789,0.00024061,3]
[365080052,1749445846758,-602.86705704,0.00024072,2]
[365080053,1749445846769,-600.0,0.00024077,2]
[365080054,1749445846778,-800.0,0.0002409,2]
[365080055,1749445846789,-8577.80651861,0.00024093,7]
[365080056,1749445846799,-160.0,0.000241,7]
[365080057,1749445846809,-53965.13,0.000241,2]
[365080058,1749445846820,-834.7738823,0.000241,7]
[365080059,1749445846830,-515.63,0.00024109,4]
[365080060,1749445846841,-554.44,0.00024109,4]
[365080061,1749445846851,-557.79,0.00024109,4]
[365080062,1749445846861,-1271.94,0.00024109,4]
[365080063,1749445846871,-531.27,0.00024109,4]
[365080064,1749445846882,-760.03,0.00024109,4]
[365080065,1749445846892,-816.9,0.00024109,4]
[365080066,1749445846902,-986.49,0.00024109,4]
[365080067,1749445846912,-1237.73,0.00024109,4]
[365080068,1749445846922,-903.46,0.00024109,4]
[365080069,1749445846933,-1192.7,0.00024109,4]
[365080070,1749445846943,-1365.7,0.00024109,4]
[365080071,1749445846954,-457.32,0.00024109,4]
[365080072,1749445846963,-493.27,0.00024109,4]
[365080073,1749445846973,-5000.0,0.00024116,2]
[365080074,1749445846983,-3000.0,0.00024164,2]
[365080075,1749445846993,-321826.55653858,0.00024172,10]
[365080076,1749445847089,-529.15,0.00023013,4]
[365080077,1749445847099,-2371.42907481,0.00024172,10]
[365080078,1749445847109,-153.10058331,0.00024172,3]
[365080079,1749445847119,-1744.0,0.00024172,3]
[365080080,1749445847129,-1335.79316919,0.00024172,3]
[365080081,1749445847177,-529.15,0.00023287,4]
[365080082,1749445847187,-97.05556976,0.00023561,4]
[365080083,1749445847199,-432.09443024,0.00023561,4]
[365080084,1749445847209,-529.15,0.00023835,4]
[365080085,1749445847220,-529.15,0.00024109,4]
[365080086,1749445847230,-408.20683081,0.00024172,3]
[365080087,1749445847240,-153.0,0.00024172,3]
[365080088,1749445847250,-1744.0,0.00024172,3]
[365080089,1749445847260,-153.0,0.00024172,3]
[365080090,1749445847269,-1744.0,0.00024172,3]
[365080091,1749445847279,-153.67475936,0.00024172,3]
[365080092,1749445847288,-1744.0,0.00024172,3]
[365080093,1749445847297,-1368.29753763,0.00024172,3]
[365080094,1749445847307,-155.0,0.00024172,2]
[365080095,1749445847316,-15275.62584811,0.000242,7]
[365080096,1749445847328,-257.3663636,0.000242,7]
[365080097,1749445847433,-500.0,0.00020271,2]
[365080098,1749445847443,-500.0,0.00020271,2]
[365080099,1749445847454,-500.0,0.00020271,2]
[365080100,1749445847464,-500.0,0.00020271,2]
[365080101,1749445847473,-500.0,0.00020271,2]
[365080102,1749445847483,-165.71296048,0.00020271,2]
[365080103,1749445847493,-155.92895944,0.00023381,2]
[365080104,1749445847504,-13406.25991008,0.000242,7]
[365080105,1749445847565,-709.16309492,0.000242,7]
[365080106,1749445847581,-1965.34090415,0.000242,7]
[365080107,1749445847594,-9995.81387914,0.000242,7]
[365080108,1749445847604,-160.0,0.000242,10]
[365080109,1749445847614,-199.03779276,0.000242,3]
[365080110,1749445851315,210.73,0.00017848,2]
[365080112,1749445900256,165.37602,0.00013699,2]
[365080113,1749445929864,192.69,0.00017713,2]
[365080119,1749446010103,228.23,0.00017571,2]
[365080120,1749446090743,3037.64527763,0.00017777,3]
[365080121,1749446090766,5308.54311111,0.00017777,3]
[365080122,1749446090787,5308.54311111,0.00017777,3]
[365080123,1749446090807,5308.54311111,0.00017777,3]
[365080124,1749446090828,5308.54311111,0.00017777,3]
[365080125,1749446090848,5308.54311111,0.00017777,3]
[365080126,1749446090869,5308.54311111,0.00017777,3]
[365080127,1749446090888,5308.54311111,0.00017777,3]
[365080128,1749446090909,5308.54311111,0.00017777,3]
[365080129,1749446090946,5308.54311111,0.00017777,3]
[365080130,1749446090967,5308.54311111,0.00017777,3]
[365080131,1749446090988,5308.54311111,0.00017777,3]
[365080132,1749446091011,5308.54311111,0.00017777,3]
[365080133,1749446091033,5308.54311111,0.00017777,3]
[365080134,1749446091054,5308.54311111,0.00017777,3]
[365080135,1749446091076,2236.56586864,0.00017777,3]
[365080136,1749446091206,225.32,0.00017605,2]
[365080137,1749446171678,554.54,0.00017623,2]
[365080139,1749446335306,547.48,0.00017566,2]
[365080140,1749446418307,540.51,0.00017956,2]
[365080142,1749446503190,533.63,0.0001794,2]
[365080143,1749446586855,526.84,0.0001795,2]
[365080144,1749446668429,143.65724247,0.00017953,2]
[365080145,1749446668454,376.47275753,0.00017953,2]
[365080147,1749446750348,528.88,0.00017964,2]
[365080148,1749446830718,522.15,0.00017949,2]
[365080251,1749447038599,-333.0,0.00018,2]
[365080252,1749447038609,-5448.87,0.00018453,2]
[365080255,1749447038657,-644.7222547,0.00018453,2]
[365080257,1749447038667,-515.5,0.00018624,2]
[365080260,1749447038676,-789.1244893,0.00018737,2]
[365080262,1749447038686,-1200.0,0.00019167,2]
[365080264,1749447038695,-819.72178287,0.00019168,2]
[365080267,1749447038716,-300.0,0.00019176,2]
[365080269,1749447038728,-300.0,0.00019177,2]
[365080270,1749447038738,-440.0,0.00019178,2]
[365080272,1749447038749,-500.0,0.0001945,2]
[365080273,1749447038760,-440.0,0.0001945,2]
[365080274,1749447038770,-440.0,0.0001945,2]
[365080275,1749447038780,-440.0,0.0001945,2]
[365080276,1749447038790,-440.0,0.0001945,2]
[365080277,1749447038800,-440.0,0.0001945,2]
[365080278,1749447038810,-440.0,0.0001945,2]
[365080279,1749447038820,-440.0,0.0001945,2]
[365080280,1749447038830,-440.0,0.0001945,2]
[365080281,1749447038839,-440.0,0.0001945,2]
[365080282,1749447038849,-440.0,0.0001945,2]
[365080283,1749447038859,-440.0,0.0001945,2]
[365080284,1749447038869,-440.0,0.0001945,2]
[365080285,1749447038878,-440.0,0.0001945,2]
[365080286,1749447038888,-440.0,0.0001945,2]
[365080287,1749447038897,-440.0,0.0001945,2]
[365080288,1749447038907,-524.23,0.0001945,2]
[365080289,1749447038918,-440.0,0.0001945,2]
[365080290,1749447038927,-440.0,0.0001945,2]
[365080291,1749447038937,-440.0,0.0001945,2]
[365080292,1749447038947,-440.0,0.0001945,2]
[365080293,1749447038957,-440.0,0.0001945,2]
[365080294,1749447038967,-130.43362242,0.00019451,2]
[365080295,1749447038981,-309.56637758,0.00019451,2]
[365080296,1749447038991,-442.63409766,0.00019451,2]
[365080297,1749447039002,-440.0,0.00019451,2]
[365080298,1749447039012,-500.0,0.00019451,2]
[365080299,1749447039022,-440.0,0.00019451,2]
[365080300,1749447039032,-440.0,0.00019451,2]
[365080301,1749447039042,-440.0,0.00019451,2]
[365080302,1749447039051,-470.86,0.00019451,2]